bitfinex/quotes_SOLUSD_20251116
["timestamp","ask_amount","ask_price","bid_price","bid_amount"]
[1763325006919,4.52353656,138.24,138.19,3.82353656]
[1763325007113,4.52353656,138.24,138.19,4.52353656]
[1763325007320,0.7,138.24,138.2,4.52353656]
[1763325007625,27.17473656,138.24,138.2,0.7]
[1763325008938,33.48912307,138.24,138.2,0.7]
[1763325009520,32.78912307,138.24,138.2,0.7]
[1763325009715,33.48912307,138.24,138.2,0.7]
[1763325012533,22.6512,138.24,138.2,10.83792307]
[1763325012911,22.6512,138.24,138.21,0.7]
[1763325013934,0.7,138.23,138.18,10.13792307]
[1763325014134,10.83792307,138.23,138.18,0.7]
[1763325014436,10.83792307,138.23,138.19,0.7]
[1763325014736,10.83792307,138.23,138.18,10.83792307]
[1763325014737,0.7,138.22,138.18,10.83792307]
[1763325015052,0.7,138.22,138.19,0.7]
[1763325015522,0.7,138.22,138.19,0.72]
[1763325016532,10.13792307,138.23,138.19,0.72]
[1763325016533,22.6512,138.24,138.2,10.13792307]
[1763325016717,22.6512,138.25,138.2,10.13792307]
[1763325016922,22.6512,138.25,138.21,0.72]
[1763325017120,23.3712,138.25,138.21,0.72]
[1763325017317,22.6512,138.25,138.21,6.54134794]
[1763325017636,22.6512,138.25,138.22,5.82134794]
[1763325017940,22.6512,138.25,138.22,6.54134794]
[1763325018123,22.6512,138.25,138.23,0.72]
[1763325018729,0.72,138.24,138.2,6.54134794]
[1763325019033,29.19254794,138.25,138.2,6.54134794]
[1763325019235,29.19254794,138.25,138.21,0.72]
[1763325019535,103.92,138.29,138.22,5.82134794]
[1763325019736,5.82134794,138.28,138.23,5.82134794]
[1763325020141,0.72,138.28,138.24,0.72]
[1763325020322,5.82134794,138.27,138.22,5.82134794]
[1763325020526,5.82134794,138.26,138.22,6.54134794]
[1763325020728,6.54134794,138.26,138.22,6.54134794]
[1763325021035,6.54134794,138.26,138.23,0.72]
[1763325021543,0.72,138.26,138.23,0.72]
[1763325021719,6.54134794,138.25,138.21,0.72]
[1763325021928,6.54134794,138.25,138.21,6.54134794]
[1763325022123,5.82134794,138.25,138.21,6.54134794]
[1763325022434,5.82134794,138.25,138.22,0.72]
[1763325022632,0.72,138.28,138.22,6.54134794]
[1763325022944,5.82134794,138.27,138.22,6.54134794]
[1763325023363,6.54134794,138.27,138.23,0.72]
[1763325023531,6.54134794,138.26,138.23,0.72]
[1763325024732,5.82134794,138.27,138.23,0.72]
[1763325024940,0.72,138.28,138.23,0.72]
[1763325025139,5.82134794,138.27,138.23,6.54134794]
[1763325025339,5.82134794,138.28,138.23,6.54134794]
[1763325025658,5.82134794,138.28,138.24,0.72]
[1763325026062,6.54134794,138.28,138.24,0.72]
[1763325026430,5.82134794,138.27,138.22,5.82134794]
[1763325026636,6.54134794,138.27,138.22,5.82134794]
[1763325026833,5.82134794,138.25,138.19,32.44002769]
[1763325027036,5.82134794,138.21,138.17,0.72]
[1763325027232,23.3712,138.23,138.17,0.72]
[1763325027555,5.82134794,138.21,138.17,0.72]
[1763325027733,5.82134794,138.2,138.15,5.82134794]
[1763325027934,5.82134794,138.2,138.14,0.2]
[1763325027935,5.82134794,138.18,138.14,0.2]
[1763325028249,5.82134794,138.15,138.14,0.2]
[1763325028453,0.72,138.18,138.14,0.2]
[1763325028950,2.44826955,138.17,138.14,0.2]
[1763325029134,2.44826955,138.16,138.14,0.2]
[1763325030355,3.11826955,138.16,138.14,0.2]
[1763325030745,2.44826955,138.15,138.14,0.2]
[1763325030954,5.830238,138.15,138.14,0.2]
[1763325031140,6.500238,138.15,138.14,0.2]
[1763325031342,5.830238,138.15,138.14,0.2]
[1763325033352,23.3212,138.19,138.14,0.89]
[1763325033551,5.830238,138.18,138.14,0.89]
[1763325033757,6.500238,138.18,138.14,0.89]
[1763325034430,5.830238,138.15,138.14,0.2]
[1763325034948,6.500238,138.15,138.14,0.2]
[1763325037933,6.500238,138.19,138.14,6.720238]
[1763325038333,6.500238,138.19,138.15,0.69]
[1763325038858,5.830238,138.19,138.15,0.69]
[1763325039247,6.500238,138.19,138.15,0.69]
[1763325040648,5.830238,138.18,138.15,0.69]
[1763325042772,5.830238,138.18,138.14,0.2]
[1763325042943,6.500238,138.18,138.14,0.89]
[1763325044263,5.830238,138.16,138.14,0.2]
[1763325044775,5.830238,138.15,138.14,0.2]
[1763325045978,6.500238,138.16,138.14,0.2]
[1763325046361,6.500238,138.15,138.14,0.2]
[1763325048453,132.351438,138.15,138.14,0.2]
[1763325049072,126.5212,138.15,138.14,0.2]
[1763325049373,142.14026569,138.15,138.14,0.2]
[1763325049576,119.48906569,138.15,138.14,0.2]
[1763325052981,116.1093014,138.15,138.14,0.2]
[1763325053289,116.1093014,138.15,138.12,0.2]
[1763325053290,82.44002769,138.13,138.12,0.2]
[1763325053480,84.8905014,138.13,138.12,0.2]
[1763325053677,85.5605014,138.13,138.12,0.2]
[1763325055390,22.6512,138.13,138.12,0.2]
[1763325055777,3.12047371,138.15,138.12,0.89]
[1763325056074,3.12047371,138.15,138.12,0.2]
[1763325056988,2.45047371,138.14,138.12,0.2]
[1763325058666,25.77167371,138.13,138.12,0.2]
[1763325060383,75.77167371,138.13,138.12,0.2]
[1763325060887,178.97167371,138.13,138.12,0.2]
[1763325061987,178.97167371,138.13,138.12,0.9]
[1763325061988,128.30167371,138.13,138.12,0.9]
[1763325062285,2.45047371,138.14,138.12,0.9]
[1763325062683,2.45047371,138.14,138.12,0.2]
[1763325062990,25.10167371,138.16,138.13,0.7]
[1763325063174,2.45047371,138.18,138.13,0.7]
[1763325064272,22.6512,138.19,138.13,0.7]
[1763325064571,25.10167371,138.15,138.12,0.9]
[1763325064771,28.48188089,138.15,138.12,0.9]
[1763325065105,5.83068089,138.17,138.13,0.7]
[1763325065386,5.83068089,138.18,138.13,6.53068089]
[1763325065776,5.83068089,138.18,138.14,0.7]
[1763325066098,5.83068089,138.15,138.12,0.2]
[1763325066274,5.83068089,138.14,138.12,0.9]
[1763325066475,5.83068089,138.13,138.12,0.2]
[1763325066682,50.0,138.23,138.13,0.7]
[1763325066884,6.54068089,138.21,138.16,5.83068089]
[1763325067372,0.71,138.2,138.16,6.33068089]
[1763325067908,29.19188089,138.2,138.12,22.8512]
[1763325068074,5.83068089,138.18,138.13,5.83068089]
[1763325068281,5.83068089,138.16,138.12,0.2]
[1763325068478,0.71,138.17,138.12,0.2]
[1763325068479,5.83068089,138.15,138.12,0.2]
[1763325068882,6.54068089,138.15,138.12,0.2]
[1763325069296,78.48188089,138.19,138.12,0.7]
[1763325069484,5.83068089,138.17,138.12,6.53068089]
[1763325069672,6.54068089,138.18,138.13,6.33068089]
[1763325069994,6.54068089,138.18,138.14,0.5]
[1763325070500,6.54068089,138.18,138.13,6.33068089]
[1763325073505,0.71,138.18,138.14,5.83068089]
[1763325074006,0.71,138.18,138.14,6.33068089]
[1763325074494,6.54068089,138.18,138.13,5.83068089]
[1763325075002,0.71,138.17,138.13,5.83068089]
[1763325075303,0.71,138.17,138.12,0.7]
[1763325075484,0.71,138.17,138.13,5.83068089]
[1763325076712,0.71,138.17,138.12,0.2]
[1763325076713,6.54068089,138.17,138.12,6.03068089]
[1763325077084,0.72,138.16,138.12,6.03068089]
[1763325077907,0.72,138.16,138.12,0.2]
[1763325077908,5.83068089,138.13,138.12,0.2]
[1763325078293,6.55068089,138.13,138.12,0.2]
[1763325079011,10.87487288,138.13,138.12,0.2]
[1763325079421,22.6512,138.11,138.1,0.2]
[1763325079838,22.6512,138.12,138.1,0.2]
[1763325080514,10.87487288,138.14,138.1,0.2]
[1763325080724,0.72,138.13,138.1,0.2]
[1763325082036,0.72,138.13,138.1,10.35487288]
[1763325082214,0.72,138.13,138.1,0.2]
[1763325090679,22.6512,138.15,138.11,4.52705042]
[1763325090956,0.66,138.18,138.14,3.82705042]
[1763325091172,0.66,138.2,138.16,3.82705042]
[1763325091332,0.66,138.19,138.16,3.82705042]
[1763325091535,23.3112,138.19,138.16,3.82705042]
[1763325092073,0.66,138.18,138.15,3.82705042]
[1763325092231,3.82705042,138.17,138.12,3.82705042]
[1763325092432,3.82705042,138.16,138.11,3.82705042]
[1763325092735,3.82705042,138.15,138.1,4.02705042]
[1763325092936,4.48705042,138.15,138.1,4.02705042]
[1763325093254,0.66,138.14,138.1,4.02705042]
[1763325093653,0.66,138.14,138.1,4.72705042]
[1763325094542,0.66,138.14,138.1,4.02705042]
[1763325094732,0.66,138.14,138.1,4.72705042]
[1763325097157,0.66,138.14,138.1,4.02705042]
[1763325097363,4.48705042,138.14,138.1,0.2]
[1763325097733,0.66,138.14,138.1,4.02705042]
[1763325098057,0.66,138.18,138.13,3.82705042]
[1763325098248,0.66,138.17,138.13,3.82705042]
[1763325098458,23.3112,138.17,138.13,4.52705042]
[1763325100952,50.0,138.2,138.15,3.82705042]
[1763325100953,54.48705042,138.2,138.15,3.82705042]
[1763325101355,0.66,138.19,138.15,3.82705042]
[1763325101675,0.66,138.19,138.14,4.52705042]
[1763325102059,0.66,138.19,138.15,3.82705042]
[1763325104474,0.66,138.19,138.16,3.82705042]
[1763325104974,4.48705042,138.21,138.16,4.52705042]
[1763325105152,3.82705042,138.25,138.2,3.82705042]
[1763325105153,0.66,138.23,138.2,3.82705042]
[1763325110560,0.66,138.25,138.21,4.52705042]
[1763325110758,17.4,138.27,138.22,4.52705042]
[1763325110759,21.88705042,138.27,138.22,4.52705042]
[1763325110964,0.66,138.26,138.23,3.82705042]
[1763325111682,0.66,138.26,138.22,3.82705042]
[1763325112278,0.66,138.26,138.21,0.7]
[1763325112464,0.66,138.26,138.22,3.82705042]
[1763325113984,3.82705042,138.25,138.17,0.7]
[1763325114178,26.47825042,138.21,138.14,0.7]
[1763325114378,3.82705042,138.18,138.12,0.7]
[1763325114566,3.82705042,138.18,138.13,3.82705042]
[1763325114765,27.13825042,138.17,138.12,4.52705042]
[1763325115182,0.66,138.16,138.12,4.52705042]
[1763325115367,0.66,138.16,138.12,3.82705042]
[1763325116479,0.66,138.16,138.12,4.52705042]
[1763325116687,0.66,138.16,138.13,3.82705042]
[1763325116864,0.66,138.16,138.13,10.14813545]
[1763325117788,32.79933545,138.17,138.12,10.14813545]
[1763325117967,0.66,138.16,138.13,10.14813545]
[1763325119172,0.66,138.16,138.12,10.84813545]
[1763325119373,0.66,138.16,138.13,10.14813545]
[1763325119622,0.66,138.16,138.12,10.84813545]
[1763325120393,0.66,138.16,138.12,10.14813545]
[1763325120894,0.66,138.16,138.12,10.83813545]
[1763325121099,0.66,138.16,138.12,10.14813545]
[1763325121395,0.66,138.16,138.12,10.83813545]
[1763325121604,0.66,138.16,138.13,10.14813545]
[1763325121973,0.66,138.16,138.12,10.14813545]
[1763325122171,10.14813545,138.14,138.1,0.2]
[1763325122479,10.14813545,138.13,138.1,0.2]
[1763325122684,0.72,138.12,138.1,0.2]
[1763325122998,22.6512,138.11,138.1,0.2]
[1763325123415,59.78882769,138.16,138.1,11.03813545]
[1763325123620,0.72,138.15,138.11,10.14813545]
[1763325123775,22.6512,138.14,138.1,10.34813545]
[1763325124172,0.72,138.13,138.1,10.34813545]
[1763325124573,10.86813545,138.13,138.1,0.2]
[1763325124776,0.72,138.13,138.1,0.2]
[1763325124996,50.72,138.15,138.1,11.03813545]
[1763325125296,0.72,138.14,138.11,10.14813545]
[1763325125877,0.72,138.14,138.1,10.34813545]
[1763325126272,0.72,138.14,138.1,0.2]
[1763325126904,0.72,138.14,138.1,10.34813545]
[1763325127283,0.72,138.14,138.1,0.2]
[1763325127895,0.72,138.14,138.1,10.34813545]
[1763325128600,10.86813545,138.14,138.1,0.2]
[1763325129102,0.72,138.13,138.1,0.2]
[1763325129490,22.6512,138.12,138.1,0.2]
[1763325129896,23.3712,138.12,138.1,0.2]
[1763325130406,0.72,138.11,138.1,0.2]
[1763325131719,50.0,138.1,138.04,0.2]
[1763325132019,10.14813545,138.08,138.04,0.2]
[1763325132384,50.0,138.1,138.04,0.2]
[1763325132385,10.86813545,138.07,138.04,0.2]
[1763325132912,103.92,138.06,138.04,0.2]
[1763325133111,103.2,138.06,138.04,0.2]
[1763325135082,0.72,138.05,138.04,0.2]
[1763325135283,103.2,138.06,138.04,0.2]
[1763325135791,103.2,138.06,138.04,11.06813545]
[1763325135997,103.92,138.06,138.04,0.2]
[1763325136307,10.86813545,138.05,138.04,0.2]
[1763325136491,10.14813545,138.02,138.01,0.2]
[1763325136896,23.3712,138.02,138.01,0.2]
[1763325137099,0.72,138.02,138.01,0.2]
[1763325137705,3.83340308,138.04,138.01,0.2]
[1763325137906,0.72,138.02,138.01,0.2]
[1763325139104,25.82435318,138.02,138.01,0.2]
[1763325139706,75.82435318,138.02,138.01,0.2]
[1763325140015,25.82435318,138.02,138.01,0.2]
[1763325143092,62.96198087,138.02,138.01,0.2]
[1763325144302,60.50882769,138.02,138.01,0.2]
[1763325144501,62.96198087,138.02,138.01,0.2]
[1763325153003,51.99999999,138.01,138.0,0.2]
[1763325153313,64.92198086,138.01,138.0,0.2]
[1763325153519,125.10435318,137.99,137.98,0.2]
[1763325153823,100.0,137.97,137.96,0.2]
[1763325154116,122.05459359,137.97,137.96,0.2]
[1763325154416,122.73459359,137.97,137.96,0.2]
[1763325155117,110.46882769,137.97,137.96,0.2]
[1763325155417,112.92198087,137.97,137.96,0.2]
[1763325156101,2.45315318,137.98,137.96,0.2]
[1763325156292,52.45315318,137.99,137.96,0.2]
[1763325156490,22.6512,137.97,137.96,0.86]
[1763325157129,22.6512,137.97,137.96,0.2]
[1763325161133,103.2,137.98,137.96,0.2]
[1763325161134,103.2,137.98,137.96,0.86]
[1763325161306,103.2,137.98,137.96,0.2]
[1763325161825,0.68,137.97,137.96,0.2]
[1763325162610,3.13315318,137.97,137.96,0.2]
[1763325162925,105.65315318,137.98,137.96,0.2]
[1763325163128,106.33315318,137.98,137.96,0.2]
[1763325167220,103.2,137.98,137.96,0.2]
[1763325167526,103.88,137.98,137.96,0.2]
[1763325167726,103.2,137.98,137.96,0.2]
[1763325168026,105.65315318,137.98,137.96,0.2]
[1763325168334,0.68,137.97,137.96,0.2]
[1763325169224,105.65315318,137.98,137.96,0.2]
[1763325169426,103.2,137.98,137.96,0.2]
[1763325169806,103.88,137.98,137.96,0.2]
[1763325170234,0.68,137.97,137.96,0.2]
[1763325170530,106.33315318,137.98,137.96,0.2]
[1763325170936,103.2,137.98,137.96,0.86]
[1763325171114,103.2,137.98,137.96,0.2]
[1763325171315,103.88,137.98,137.96,0.2]
[1763325171627,105.65315318,137.98,137.96,0.2]
[1763325171938,103.2,137.98,137.96,0.2]
[1763325172321,103.88,137.98,137.96,0.2]
[1763325174614,103.2,137.98,137.96,0.86]
[1763325174813,103.2,137.98,137.96,3.31315318]
[1763325175007,103.2,137.98,137.97,0.66]
[1763325175834,72.6512,138.01,137.97,3.11315318]
[1763325175835,22.6512,138.01,137.97,3.11315318]
[1763325176224,22.6512,138.01,137.98,0.66]
[1763325177342,25.78435318,138.01,137.98,0.66]
[1763325177638,25.78435318,138.01,137.96,2.65315318]
[1763325177639,3.13315318,138.0,137.96,0.86]
[1763325177818,106.33315318,138.0,137.96,0.86]
[1763325178019,0.68,137.99,137.96,0.86]
[1763325178212,105.65315318,138.0,137.97,0.66]
[1763325178540,106.33315318,138.0,137.96,0.86]
[1763325179664,103.88,138.0,137.96,0.86]
[1763325180646,103.2,138.0,137.97,0.65]
[1763325180824,103.2,138.0,137.97,3.10315318]
[1763325181032,103.9,138.0,137.96,0.2]
[1763325181233,106.35315318,138.0,137.96,0.85]
[1763325181423,103.2,138.0,137.96,3.30315318]
[1763325181622,103.2,138.0,137.97,0.65]
[1763325181819,103.9,138.0,137.97,0.65]
[1763325182546,103.2,138.0,137.97,0.65]
[1763325182934,103.9,138.0,137.97,0.65]
[1763325183454,106.35315318,138.0,137.97,0.65]
[1763325183743,0.7,137.99,137.96,0.2]
[1763325184748,103.2,138.0,137.96,0.85]
[1763325184951,103.9,138.0,137.96,0.85]
[1763325186938,0.7,137.99,137.96,0.85]
[1763325188755,103.2,138.0,137.96,0.85]
[1763325188928,103.9,138.0,137.96,0.85]
[1763325189127,103.2,138.0,137.97,3.10315318]
[1763325189349,103.2,138.0,137.96,2.65315318]
[1763325189530,103.9,138.0,137.96,3.30315318]
[1763325189844,103.9,138.0,137.97,0.65]
[1763325190257,103.2,138.0,137.97,0.65]
[1763325190459,103.2,138.0,137.99,2.45315318]
[1763325190957,103.2,138.0,137.99,3.10315318]
[1763325191126,17.42,138.06,137.99,3.10315318]
[1763325191127,103.2,138.05,137.99,3.10315318]
[1763325191326,103.2,138.05,138.01,2.45315318]
[1763325191547,103.2,138.05,138.03,2.45315318]
[1763325191753,17.42,138.06,138.04,3.10315318]
[1763325192148,17.42,138.06,137.97,64.03834172]
[1763325192352,3.15315318,138.05,137.98,0.65]
[1763325192544,20.57315318,138.06,138.01,2.45315318]
[1763325192743,20.57315318,138.06,138.02,0.65]
[1763325193339,19.87315318,138.06,138.01,2.45315318]
[1763325193660,3.15315318,138.05,138.01,0.65]
[1763325193837,3.15315318,138.05,138.02,0.65]
[1763325194152,3.15315318,138.05,138.0,2.45315318]
[1763325194153,52.45315318,138.05,138.01,0.65]
[1763325194350,3.15315318,138.04,137.99,3.10315318]
[1763325194737,2.45315318,138.04,138.0,0.65]
[1763325194931,52.45315318,138.05,138.0,3.10315318]
[1763325195132,0.7,138.03,138.0,0.65]
[1763325195330,3.15315318,138.03,137.98,3.10315318]
[1763325195548,3.15315318,138.03,137.97,3.17315318]
[1763325195939,3.15315318,138.03,137.98,3.17315318]
[1763325196144,0.7,138.03,137.99,0.72]
[1763325196464,0.69,138.03,137.99,0.72]
[1763325196644,23.3412,138.04,137.99,3.17315318]
[1763325196846,3.14315318,138.05,138.0,2.45315318]
[1763325197143,0.69,138.05,138.01,2.45315318]
[1763325197351,0.69,138.05,138.01,3.17315318]
[1763325198734,0.69,138.05,138.01,0.72]
[1763325200136,3.14315318,138.05,138.01,0.72]
[1763325200865,4.52203808,138.05,138.01,0.72]
[1763325201764,0.69,138.05,138.01,0.72]
[1763325201940,4.52203808,138.05,138.01,0.72]
[1763325202136,124.45203808,138.06,138.01,0.72]
[1763325202361,120.62,138.06,138.02,3.83203808]
[1763325202556,103.2,138.06,138.03,3.83203808]
[1763325202761,103.2,138.08,138.04,3.83203808]
[1763325203138,3.83203808,138.1,138.05,4.55203808]
[1763325203344,4.72203808,138.12,138.07,3.83203808]
[1763325203859,0.69,138.11,138.07,4.55203808]
[1763325204241,3.83203808,138.08,138.04,0.72]
[1763325205364,4.52203808,138.07,138.02,4.55203808]
[1763325205548,4.52203808,138.07,138.03,0.72]
[1763325208264,4.52203808,138.06,138.01,0.72]
[1763325208435,3.83203808,138.04,137.99,0.72]
[1763325208640,3.83203808,138.04,138.0,0.72]
[1763325208852,4.52203808,138.04,138.0,0.72]
[1763325210163,107.03203808,138.07,138.02,3.83203808]
[1763325210367,4.53203808,138.06,138.0,27.20323808]
[1763325210552,4.53203808,138.06,138.01,0.67]
[1763325210863,4.53203808,138.05,138.0,26.48323808]
[1763325211065,0.7,138.05,138.01,4.50203808]
[1763325211667,53.83203808,138.06,138.01,3.83203808]
[1763325211869,0.7,138.05,138.01,3.83203808]
[1763325212056,0.7,138.05,138.02,0.67]
[1763325212369,3.83203808,138.04,138.0,0.67]
[1763325212579,3.83203808,138.04,137.99,3.83203808]
[1763325212868,4.53203808,138.03,137.97,22.6512]
[1763325213083,3.83203808,138.0,137.96,0.2]
[1763325213569,4.53203808,138.0,137.96,0.87]
[1763325214065,0.7,138.0,137.96,0.2]
[1763325214267,4.53203808,138.01,137.97,0.67]
[1763325215268,22.6512,137.99,137.96,0.2]
[1763325215568,26.48323808,137.99,137.96,0.2]
[1763325215779,4.53203808,137.98,137.96,0.2]
[1763325215953,22.6512,137.97,137.96,0.2]
[1763325216269,23.3512,137.97,137.96,0.2]
[1763325216748,22.6512,137.97,137.96,0.2]
[1763325216949,23.3512,137.97,137.96,0.2]
[1763325217752,27.18323808,137.97,137.96,0.2]
[1763325217952,23.3512,137.97,137.96,0.2]
[1763325218381,27.18323808,137.97,137.96,0.2]
[1763325218753,4.53203808,137.97,137.96,0.2]
[1763325219557,14.32086577,137.97,137.96,0.2]
[1763325219861,64.32086577,137.97,137.96,0.2]
[1763325221078,0.7,138.04,137.96,4.70203808]
[1763325221277,50.7,138.04,137.99,3.83203808]
[1763325221452,100.7,138.04,137.96,0.2]
[1763325221657,26.48323808,137.99,137.96,0.2]
[1763325221851,22.6512,137.99,137.97,3.83203808]
[1763325222074,0.7,138.03,137.98,3.83203808]
[1763325222275,22.6512,138.01,137.97,3.83203808]
[1763325222471,26.48323808,138.01,137.96,4.41203808]
[1763325222654,0.7,138.0,137.96,4.41203808]
[1763325222854,0.7,138.0,137.96,0.2]
[1763325223176,22.6512,137.99,137.96,4.03203808]
[1763325223362,22.6512,137.99,137.97,3.83203808]
[1763325223768,22.6512,137.99,137.96,4.41203808]
[1763325223971,22.6512,137.99,137.97,3.83203808]
[1763325224276,0.7,138.0,137.96,4.41203808]
[1763325224460,22.6512,137.99,137.96,0.2]
[1763325224984,23.3512,137.99,137.96,0.2]
[1763325225678,23.3512,137.99,137.96,4.03203808]
[1763325229990,22.6512,137.99,137.96,4.03203808]
[1763325230293,22.6512,137.97,137.96,0.2]
[1763325230675,23.3512,137.97,137.96,0.2]
[1763325232374,27.18323808,137.97,137.96,0.2]
[1763325232694,130.38323808,137.97,137.96,0.2]
[1763325233387,157.73203808,137.97,137.96,0.2]
[1763325235277,107.73203808,137.97,137.96,0.2]
[1763325235578,103.9,137.97,137.96,0.2]
[1763325236506,107.73203808,137.97,137.96,0.2]
[1763325236890,157.73203808,137.97,137.96,0.2]
[1763325239908,107.73203808,137.97,137.96,0.2]
[1763325242004,103.2,138.01,137.96,4.41203808]
[1763325242303,0.65,138.0,137.96,0.58]
[1763325242494,103.85,138.01,137.97,4.21203808]
[1763325242694,17.42,138.02,137.99,3.83203808]
[1763325243003,17.42,138.02,137.97,0.38]
[1763325243004,17.42,138.02,138.01,3.83203808]
[1763325243484,17.42,138.02,138.01,4.21203808]
[1763325244107,17.42,138.02,138.0,3.83203808]
[1763325244402,17.42,138.02,137.98,3.83203808]
[1763325244403,18.07,138.02,137.98,3.83203808]
[1763325244724,0.65,138.01,137.97,3.83203808]
[1763325245908,0.65,138.01,137.98,3.83203808]
[1763325246091,17.42,138.02,138.0,3.83203808]
[1763325246287,17.42,138.02,137.99,3.83203808]
[1763325246682,17.42,138.02,137.99,4.21203808]
[1763325247187,17.42,138.02,138.01,3.83203808]
[1763325247605,17.42,138.02,138.01,4.21203808]
[1763325248704,0.65,138.07,138.01,0.38]
[1763325248887,3.83203808,138.06,138.01,4.21203808]
[1763325249090,3.83203808,138.06,138.01,3.83203808]
[1763325249412,0.65,138.05,138.01,3.83203808]
[1763325249718,4.48203808,138.05,138.0,3.83203808]
[1763325250112,54.48203808,138.05,138.0,3.83203808]
[1763325250313,107.68203808,138.04,137.99,3.83203808]
[1763325250611,4.48203808,138.03,137.98,3.83203808]
[1763325250817,4.48203808,138.03,137.98,4.21203808]
[1763325251321,54.48203808,138.02,137.97,3.83203808]
[1763325251608,157.68203808,138.02,137.97,3.83203808]
[1763325251798,0.65,138.01,137.97,3.83203808]
[1763325252890,0.65,138.01,137.97,10.17163351]
[1763325253703,10.82163351,138.01,137.96,10.75163351]
[1763325253896,0.65,138.01,137.97,10.17163351]
[1763325255011,163.37163351,138.02,137.98,0.38]
[1763325255216,103.2,138.02,137.99,10.17163351]
[1763325255809,103.2,138.02,137.99,10.55163351]
[1763325256809,103.2,138.02,137.96,0.2]
[1763325257018,50.71,138.01,137.96,0.2]
[1763325257318,10.88163351,138.01,137.96,10.75163351]
[1763325258119,10.88163351,138.0,137.96,0.2]
[1763325258423,10.17163351,137.97,137.96,0.2]
[1763325258789,10.88163351,137.97,137.96,0.2]
[1763325261225,0.71,137.97,137.96,0.2]
[1763325262313,103.2,137.99,137.96,0.58]
[1763325262515,103.2,137.99,137.97,10.17163351]
[1763325262721,103.2,137.99,137.97,0.38]
[1763325262925,103.2,137.99,137.97,6.22229753]
[1763325263810,103.2,137.99,137.96,6.04229753]
[1763325264008,103.2,137.99,137.96,6.42229753]
[1763325264829,103.2,137.99,137.96,0.2]
[1763325265027,0.71,137.98,137.96,0.2]
[1763325265522,103.2,137.99,137.96,0.2]
[1763325265722,103.91,137.99,137.96,0.2]
[1763325266531,0.71,137.98,137.96,0.2]
[1763325266708,103.91,137.99,137.96,0.2]
[1763325267729,103.2,137.99,137.96,0.2]
[1763325268025,0.71,137.98,137.96,0.2]
[1763325268528,159.04229753,137.97,137.96,0.2]
[1763325269037,159.75229753,137.97,137.96,0.2]
[1763325269410,50.0,137.95,137.89,0.2]
[1763325269742,5.84229753,137.93,137.89,0.2]
[1763325270108,0.71,137.92,137.89,0.2]
[1763325272711,6.55229753,137.92,137.89,0.2]
[1763325273235,0.72,137.91,137.89,0.2]
[1763325273720,6.56229753,137.92,137.89,0.2]
[1763325273908,0.72,137.92,137.89,0.2]
[1763325274236,6.56229753,137.92,137.89,0.2]
[1763325274416,0.72,137.92,137.89,0.2]
[1763325279218,50.0,137.93,137.89,6.62229753]
[1763325279423,109.04229753,137.94,137.9,5.84229753]
[1763325279424,103.2,137.94,137.9,5.84229753]
[1763325279645,0.72,137.93,137.89,0.78]
[1763325279826,0.72,137.93,137.9,5.84229753]
[1763325280026,103.2,137.94,137.91,5.84229753]
[1763325280333,103.2,137.94,137.92,5.84229753]
[1763325280543,103.2,137.94,137.92,6.42229753]
[1763325280724,103.2,137.94,137.93,0.58]